Cogmind - Beta 14 *** ADVENTURER MODE // 2024.08.23 @ 10:50:16 Player: Ms. V3-11A Result: Destroyed by NL-O81(R) with Subdweller Laser Performance ------------- Evolutions (0) 0 Regions Visited (2) 400 Robots Destroyed (30) 150 Value Destroyed (797) 797 Prototype IDs (13) 260 Alien Tech Used (0) 0 Bonus (0) 0 TOTAL SCORE: 1607 Bonus ------- None Cogmind --------- Core Integrity 0/250 Matter 65/300 Energy 24/250 System Corruption 0% Temperature Cool (6) Movement Treading (240) Ox1 Location -10/Subcaves Parts ------- > --- POWER (1+1) ------ Ion Engine > --- PROPULSION (2) --- Light Treads Light Treads > --- UTILITY (2) ------ High-capacity Storage Unit Light Armor Plating > --- WEAPON (2) ------- Powered Cannon > --- INVENTORY (20) --- Spiked Treads Heat Sink Large Storage Unit High-capacity Battery (250) Structural Scanner Light Armor Plating Makeshift Laser Subdweller Beam Cannon Light Assault Rifle Battle Rifle Battle Rifle Barrage Gun Battle Cannon Grenade Launcher Mining Claw Peak State ------------ > --- POWER ------------ Ion Engine > --- PROPULSION ------- Light Treads Light Treads > --- UTILITY ---------- High-capacity Storage Unit Light Armor Plating > --- WEAPON ----------- Powered Cannon > --- INVENTORY -------- Spiked Treads Heat Sink Large Storage Unit High-capacity Battery Structural Scanner Light Armor Plating Makeshift Laser Light Assault Rifle Battle Rifle Barrage Gun Battle Cannon Grenade Launcher Mining Claw [Rating: 21] Favorites ----------- Power Ion Engine Engine Ion Engine Propulsion Light Treads Treads Light Treads Leg Aluminum Leg Utility Large Storage Unit Device Heat Sink Storage Large Storage Unit Protection Light Armor Plating Weapon Subdweller Beam Cannon Energy Gun Medium Laser Energy Cannon Subdweller Beam Cannon Ballistic Gun Assault Rifle Ballistic Cannon Slug Cannon Launcher Grenade Launcher Build | -11 -10 -10 ------- Run | Yrd Mat Sub Slots Evolved . | . . . Power . | . . . Propulsion . | . . . Utility . | . . . Weapon . | . . . Parts Attached 25 | . 6 19 Power 3 | . 1 2 Engine 3 | . 1 2 Core . | . . . Reactor . | . . . Propulsion 7 | . 3 4 Treads 4 | . . 4 Leg 3 | . 3 . Wheel . | . . . Hover . | . . . Flight . | . . . Utility 5 | . 2 3 Device 1 | . 1 . Storage 2 | . 1 1 Processor . | . . . Hackware . | . . . Protection 2 | . . 2 Artifact . | . . . Weapon 10 | . . 10 Energy Gun 1 | . . 1 Energy Cannon 3 | . . 3 Ballistic Gun 2 | . . 2 Ballistic Cannon 2 | . . 2 Launcher 2 | . . 2 Special Weapon . | . . . Impact Weapon . | . . . Slashing Weapon . | . . . Piercing Weapon . | . . . Special Melee Weapon . | . . . Unidentified Prototypes . | . . . Parts Lost 8 | . 1 7 Power 3 | . 1 2 Propulsion 2 | . . 2 Utility . | . . . Weapon 3 | . . 3 Highest Loss Streak 4 | . 1 4 To Critical Strikes . | . . . Average Slot Usage (%) 96 | . 90 98 Engine 13 | . 14 13 Treads 19 | . . 27 Leg 8 | . 28 . Device 5 | . 5 6 Storage 13 | . 14 13 Protection 5 | . . 7 Energy Gun 6 | . 14 3 Energy Cannon 9 | . . 12 Ballistic Gun 7 | . 14 4 Ballistic Cannon 3 | . . 5 Peak Build Rating 21 | 6 8 21 Average Rating 10 | 6 7 12 On Entrance 6 | 6 6 8 Naked Turns . | . . . Heaviest Build 59 | 14 34 59 Greatest Support 40 | 20 20 40 Greatest Overweight (x) 1 | . 1 1 Average Overweight (x) . | . . . Largest Inventory Capacity 20 | 8 15 20 Average Capacity 17 | 8 14 18 Most Carried 16 | 5 15 16 Average Carried 13 | 5 13 13 Final Capacity 20 | 8 15 20 Final Carried 15 | 4 15 15 Class Distribution -------------------- 89% | Mutant 10% | Scavenger-Mutant Dominant Class ---------------- Mutant | -10/Materials Mutant | -10/Subcaves Resources | -11 -10 -10 ----------- Run | Yrd Mat Sub Matter Collected 774 | 180 189 405 Remotely . | . . . Salvage Created 977 | . 577 400 Parts 59 | . 42 17 Haulers Intercepted 2 | . 2 . Recyclers Shooed . | . . . Parts Field Recycled . | . . . Retrieved Matter . | . . . Parts Self-Destructed 7 | . . 7 Prevented . | . . . Kills | -11 -10 -10 ------- Run | Yrd Mat Sub Combat Hostiles Destroyed 27 | . 15 12 Guns 14 | . 14 . Cannons 11 | . . 11 Classes Destroyed 7 | . 4 3 Hauler 2 | . 2 . Recycler 1 | . 1 . Swarmer 9 | . 9 . Grunt 9 | . 6 3 Sentry 1 | . . 1 Cobbler 1 | . . 1 Subdweller 8 | . . 8 Best Kill Streak 3 | . 3 2 Combat Bots Only 3 | . 3 2 Max Kills in Single Turn 2 | . 2 1 Gunslinging 1 | . 1 . Exploded . | . . . Melee . | . . . Uniques/NPCs Destroyed . | . . . Combat | -11 -10 -10 -------- Run | Yrd Mat Sub Hostile Shots Fired 173 | . 67 106 Missed 58 | . 23 35 Damage Taken 1651 | . 323 1328 Core 250 | . 71 179 Absorbed by Shields . | . . . Ignored by Resistances 427 | . 108 319 Core Remaining (%) 100 | 100 . . Volleys Fired 159 | . 38 121 Largest 2 | . 2 2 Hottest 130 | . 70 130 Shots Fired 273 | . 74 199 Gun 121 | . 74 47 Cannon 141 | . . 141 Launcher 11 | . . 11 Special . | . . . Kinetic 121 | . 38 83 Thermal 141 | . 36 105 Explosive 11 | . . 11 Electromagnetic . | . . . Robot Hit Streak 46 | . 20 46 Robot Miss Streak 2 | . 2 2 Penetration Max . | . . . Secondary Targets 6 | . 6 . Max Gunslinging Chain 1 | . 1 . Shots Hit Robots 169 | . 62 107 Core Hits 43 | . 24 19 Critical Kills 1 | . . 1 Critical Parts Destroyed . | . . . Critical Strikes 12 | . 5 7 Burn 7 | . 5 2 Meltdown 1 | . . 1 Destroy 2 | . . 2 Blast 2 | . . 2 Melee Attacks . | . . . Impact . | . . . Slashing . | . . . Piercing . | . . . Sneak Attacks . | . . . Combat Hostiles . | . . . Follow-up Attacks . | . . . Damage Inflicted 3193 | . 788 2405 Guns 1088 | . 788 300 Cannons 2056 | . . 2056 Explosions 48 | . . 48 Melee . | . . . Ramming 1 | . . 1 Kinetic 1393 | . 398 995 Thermal 1751 | . 390 1361 Explosive 48 | . . 48 Electromagnetic . | . . . Impact . | . . . Slashing . | . . . Piercing . | . . . Highest Corruption . | . . . Average Corruption . | . . . Corruption Purged . | . . . Corruption Blocked . | . . . Overload Shots . | . . . Overflow Damage . | . . . Projectiles . | . . . Explosions . | . . . Melee . | . . . Knockbacks 10 | . . 10 Impact . | . . . Kinetic 10 | . . 10 Secondary . | . . . Self-Inflicted Damage . | . . . Shots . | . . . Rammed 1 | . . 1 Targets Rammed 1 | . . 1 Kicked . | . . . Crushed . | . . . Highest Temperature 205 | . 109 205 Average Temperature 41 | . 37 45 Received Heat Transfer 642 | . 141 501 Siege Activations . | . . . Robots Corrupted . | . . . Combat Hostiles . | . . . Parts Fried . | . . . Impact Corruptions . | . . . Robots Melted 3 | . 1 2 Combat Hostiles 2 | . 1 1 Parts Melted 7 | . 3 4 Heat Transferred 3478 | . 1517 1961 Parts Sabotaged . | . . . Parts Stolen . | . . . Parts Stripped . | . . . Power Chain Reactions . | . . . Alert | -11 -10 -10 ------- Run | Yrd Mat Sub Peak Influence 130 | . 130 . Initial . | . . . Average 40 | . 40 . Maximum Alert Level . | . . . Low Security (%) 100 | 100 100 . Level 1 . | . . . Level 2 . | . . . Level 3 . | . . . Level 4 . | . . . Level 5 . | . . . High Security . | . . . Max Security . | . . . Squads Dispatched . | . . . Investigation . | . . . Extermination . | . . . Reinforcement . | . . . Assault . | . . . Garrison . | . . . Intercept . | . . . Searches Triggered . | . . . Construction Impeded . | . . . Haulers Reinforced . | . . . Active Scanning Responses . | . . . Cargo Convoy Interrupts . | . . . Stealth | -11 -10 -10 --------- Run | Yrd Mat Sub Distress Signals 2 | . 2 . Communications Jammed . | . . . Distress Signals . | . . . Times Spotted 47 | . 27 20 Peak Tracking Total 4 | . 4 3 Tactical Retreats 3 | . . 3 Traps | -11 -10 -10 ------- Run | Yrd Mat Sub Traps Triggered 5 | . 1 4 Indirectly . | . . . Trap Hack Attempts . | . . . Triggered . | . . . Disarmed . | . . . Reprogrammed . | . . . Reused 1 | . . 1 Traps Extracted . | . . . Installed 3 | . . 3 Triggered 1 | . . 1 Most Traps Carried 2 | . . 2 Machines | -11 -10 -10 ---------- Run | Yrd Mat Sub Machines Disabled 2 | . . 2 Max in Single Turn 1 | . . 1 Machines Repaired . | . . . Machines Dismantled . | . . . Machines Sabotaged . | . . . Overloaded Fab Kills . | . . . Hacking | -11 -10 -10 --------- Run | Yrd Mat Sub Machines Accessed 10 | . 8 2 Terminals 8 | . 8 . Fabricators . | . . . Repair Stations . | . . . Recycling Units . | . . . Scanalyzers . | . . . Garrison Access . | . . . Total Hacks 24 | . 22 2 Successful 17 | . 15 2 Failed 7 | . 7 . Catastrophic . | . . . Database Lockouts . | . . . Manual 13 | . 13 . Terminals 22 | . 22 . Fabricators . | . . . Repair Stations . | . . . Recycling Units . | . . . Scanalyzers . | . . . Garrison Access . | . . . Terminal Hacks 10 | . 8 2 Record 1 | . . 1 Robot Analysis 3 | . 3 . Prototype ID Bank 1 | . 1 . Alert Level 1 | . 1 . Hauler Manifests 1 | . 1 . Zone Layout 2 | . 2 . Derelict Proto ID Bank 1 | . . 1 Fabricator Hacks . | . . . Repair Station Hacks . | . . . Recycling Unit Hacks . | . . . Scanalyzer . | . . . Garrison Access Hacks . | . . . Unauthorized Hacks 7 | . 7 . Terminals 7 | . 7 . Botnet 2 | . 2 . Skim 5 | . 5 . Fabricators . | . . . Repair Stations . | . . . Recycling Units . | . . . Scanalyzers . | . . . Garrison Access . | . . . Data Cores Recovered . | . . . Used . | . . . Hacking Detections 7 | . 7 . Full Trace Events . | . . . Feedback Events . | . . . Feedback Blocked . | . . . Robot Schematics Acquired . | . . . Robots Built . | . . . Authchips . | . . . Time . | . . . Total Robot Build Rating . | . . . Part Schematics Acquired . | . . . Parts Built . | . . . Authchips . | . . . Time . | . . . Total Part Build Rating . | . . . Parts Repaired . | . . . Time . | . . . Parts Recycled . | . . . Recycled Matter . | . . . Retrieved Matter . | . . . Retrieved Components . | . . . Parts Scanalyzed . | . . . Part Schematics Acquired . | . . . Parts Damaged . | . . . Bothacking | -11 -10 -10 ------------ Run | Yrd Mat Sub Used RIF Installer . | . . . Robots Hacked . | . . . Non-combat . | . . . Combat . | . . . Robot Hacks Applied . | . . . Relay Couplers Released . | . . . Fabnet Peak Effective % . | . . . Robots Rewired . | . . . Allies Hacked . | . . . Hacks Repelled . | . . . Allies | -11 -10 -10 -------- Run | Yrd Mat Sub Total Allies . | . . . Largest Group . | . . . Highest-Rated Group . | . . . Highest-Rated Ally . | . . . Total Orders . | . . . Ally Attacks . | . . . Total Damage . | . . . Kills . | . . . Allies Corrupted . | . . . Allies Melted . | . . . Intel | -11 -10 -10 ------- Run | Yrd Mat Sub Robot Analysis Total 3 | . 3 . Derelict Logs Recovered 1 | . . 1 Drone Launches . | . . . Drone Recoveries . | . . . Exploration | -11 -10 -10 ------------- Run | Yrd Mat Sub Turns Passed 7568 | 1 2181 5386 Spaces Moved 2993 | 1 620 2372 Core . | . . . Treads 2372 | . . 2372 Legs 621 | 1 620 . Wheels . | . . . Hover . | . . . Flight . | . . . Fastest Speed 120 | 120 120 160 Average Speed 201 | 120 186 205 Slowest Speed 240 | 120 190 240 Overloaded Moves . | . . . Propulsion Burnouts . | . . . Robots Hopped . | . . . Cave-ins Triggered . | . . . Exploration Rate (%) 63 | 2 91 96 Regions Visited 2 Branch Regions 1 Pre-discovered Areas 4 | . 2 2 Known Exits Taken . | . . . Unknown Exits Taken 2 | 1 1 . Scrap Searched 7 | . . 7 Spaces Dug . | . . . Terrain Destroyed 67 | . . 67 Melee . | . . . Projectile 9 | . . 9 AOE 58 | . . 58 Terrain Rammed . | . . . Walls Destroyed . | . . . Machines Disabled . | . . . Actions | -11 -10 -10 --------- Run | Yrd Mat Sub Total 4254 | 2 1575 2677 Wait 1017 | . 888 129 Move 2991 | . 619 2372 Hop . | . . . Pick Up 34 | . 16 18 Fast Attach 3 | . 2 1 Attach 11 | . 1 10 Detach . | . . . Swap 11 | . 3 8 Drop 24 | 2 8 14 Fire 159 | . 38 121 Melee . | . . . Ram . | . . . Kick . | . . . Crush 1 | . . 1 Escape Stasis . | . . . Rewire . | . . . Trap 3 | . . 3 Miscellaneous . | . . . Route ------- -11/Scrapyard -10/Materials (discovered 5 exits: *Mat x3 / *Min / *Sub) -10/Subcaves (discovered 3 exits: *Mat x2 / Rec) History --------- Turn | Location | Event 2 | -11/Scrapyard | Discovered new exit (range 0) 2 | -11/Scrapyard | Entered Materials 300 | -10/Materials | Build established: Mutant 1090 | -10/Materials | Discovered new exit (range 9) 1197 | -10/Materials | Discovered new exit (range 16) 1396 | -10/Materials | Discovered new exit (range 16) 1673 | -10/Materials | Identified exit to Materials 1680 | -10/Materials | Build established: Scavenger-Mutant 1732 | -10/Materials | Learned location of Storage (-7) 1783 | -10/Materials | Learned location of 2 exits from Subcaves 1826 | -10/Materials | Learned location of 1 exit from Recycling 1857 | -10/Materials | Loaded intel: 8 trap records 1913 | -10/Materials | Identified exit to Mines 1956 | -10/Materials | Learned location of Mines (-10) 2183 | -10/Materials | Entered Subcaves 2184 | -10/Subcaves | Identified exit to Materials 2184 | -10/Subcaves | Identified exit to Recycling 2275 | -10/Subcaves | A swath of the cavern ceiling suddenly collapsed 2481 | -10/Subcaves | Build established: Mutant 2517 | -10/Subcaves | Curiously followed by a Cobbler waking with a query about "LVR3C" 2714 | -10/Subcaves | Disturbed a concealed Subdweller 2827 | -10/Subcaves | Shifting Twisted Machinery released Sub. Beam Cannon 2831 | -10/Subcaves | Shifting Twisted Machinery released Battle Rifle 2992 | -10/Subcaves | Shifting Twisted Machinery released Shrapnel Trap 3043 | -10/Subcaves | Shifting Twisted Machinery released Sub. Monowheel 3196 | -10/Subcaves | Visited 4L-MR0's lab 3224 | -10/Subcaves | Found Powered Cannon 3338 | -10/Subcaves | Discovered exit to Materials (range 8) 3419 | -10/Subcaves | Visited Clippyterm 3424 | -10/Subcaves | Learned Factory trap positions 4010 | -10/Subcaves | Core integrity fell below 50% 4398 | -10/Subcaves | A swath of the cavern ceiling suddenly collapsed 4591 | -10/Subcaves | Ambushed by angry Subdweller bent on revenge 4654 | -10/Subcaves | Lost 4 parts (1p2n1w) 5710 | -10/Subcaves | Ambushed by Subdweller buried in earth 5724 | -10/Subcaves | Core integrity fell below 20% 6194 | -10/Subcaves | Learned location of Zion (-6) 6194 | -10/Subcaves | Met a Zionite searching for "candidates" 6316 | -10/Subcaves | Shifting Twisted Machinery released Spk. Treads 6348 | -10/Subcaves | Shifting Twisted Machinery released Sub. Monowheel 7386 | -10/Subcaves | Attached Powered Cannon, gained temporary slot: Power 7553 | -10/Subcaves | A Subdweller sparked back to life 7553 | -10/Subcaves | A Subdweller sparked back to life 7553 | -10/Subcaves | A Subdweller sparked back to life 7569 | -10/Subcaves | Destroyed by NL-O81(R) with Subdweller Laser Last Messages --------------- 06216_ BW-GHS(R) destroyed. 06246_ Acquired Barrage Gun. 06296_ Slammed into LQ-HAU(O). Spk. Treads falls loose from the Twisted Machinery. 06341_ Acquired Spk. Treads. Sub. Monowheel falls loose from the Twisted Machinery. 06637_ Acquired Battle Rifle. 06752_ ZG-M09(u) tweaks Twisted Machinery. 07384_ Dropped Sub. Beam Cannon. 07384_ Dropped Battle Rifle. 07385_ Subatomizers dissect the Sub. Beam Cannon. 07386_ Core temporarily expanded with Power slot. 07386_ Acquired Sub. Beam Cannon. 07389_ Acquired Battle Rifle. 07553_ OG-95P(R) creaks and sparks as it begins to move. 07553_ C5-CIJ(R) creaks and sparks as it begins to move. 07553_ NL-O81(R) creaks and sparks as it begins to move. 07561_ C5-CIJ(R) affixes Scrap Shield Fragment to Scrap Shield. 07569_ Destroyed Scrap Shield. Map ----- +----------------------------------------------------+ | ?????????????????????????????????????## | | ??????????????????????????????????????## ^ ## | | ???????????????????????????????????????## ##### | | ????????????????????????????????????????####??## | | ??????????????????????????????????????????????# | | ??????????????????????????????????????????????# # | | ??????????????????????????????????????????????#### | | ?????????????????????????????????????????????????? | | ?????????????????????????????????????????????????? | | ?????????????????????????????????????????????????? | | ?????????????????????????????????????????????????? | | ?????????????????????????????????????????????????? | | ?????????????????????????????????????????????????? | | ?????????????????????????????????????????????????? | | ?????????????????????????????????????????????????? | | ?????????????????????????????????????????????????? | | ?????????????????????????????????????????????????? | | ########?????????????????????????????????????????? | | """"#"]#?????????????????????????????????????????? | | "X ] #?????????????????????????????????????????? | | ###?????????#####???????????????????????????? | | ####????????# < ????????????????????????### | | #######"#????????# <####?###?????????####### | | ???#### #????????# RR ### ###??###### # | | ####" "#????????# ## ##?# ## | | *"##????????# " # @ ### # | | ##""#?????????#???# < ## ###### | | # "####???????###???## #### ##????# | | " ###??????? ##???######??# ##?????# | | " ###???? #???????????# #??????? | | ##?## #???????????### ????? | | ######## #### # # #???????????# ###### #???? | | ?## ### # ## ##?????????? ????&% #??# | | ## ## [!%& #??>?????? %& ?? #?## | | # %&! #????????? ?? #### | | ####??????????? ########## ##?# | | #?????????????? ?????????## ##??# | | ##?????????????? ???????????? #??## | | ###??????????????????????????? ##### | | #??????????????????????????? ## | | ## #???????????????????????????### ## | | # #### ##?????????????????????????????####### | | # ###??####????????????????????????????????????? | | # ##????????????????????????????????????????????? | | ##?????????????????????????????????????????????? | | ##??????????????????????????????????????????????? | | #???????????????????????????????????????????????? | | ###?????????????????????????????????????????????? | | ##????????????????????????????????????????????? | | ###??????????????????????????????????????????? | +----------------------------------------------------+ Best States ------------- Heat Dissipation 35 Energy Generation 10 Energy Capacity 250 Matter Stores 300 Matter Capacity 300 Sight Range 16 Terrain Scan Density 10 Armor Coverage 150 Resistance: KI 20 Resistance: TH 20 Resistance: EX 20 Resistance: EM 20 Resistance: I 20 Resistance: S 20 Resistance: P 20 Evasion (%) 55 Recoil Reduction 2 Offensive Hacking 10 Item Schematics ----------------- None Robot Schematics ------------------ None Fabricated ------------ Nothing Alien Tech Used ----------------- None Achievements -------------- None Challenges ------------ None Game ------ Seed HardcellGlidesysAnalyzer Manual? 0 Play Time 00:33:10 Cumulative 307.4 hours Start 2024.08.23 @ 09:35:30 End 2024.08.23 @ 10:50:16 Sessions 1 Manual Loads 0 Difficulty Adventurer Special Mode None Game No. 236 Rogue 63 Adventurer 147 Explorer 26 Win Type - Total 1 Types 1/0/0/0/0/0/0/0/0 Lore% 76 Gallery% 72 Achievement% 68 Wizard Run 0 Options --------- Layout 2 ASCII 0 Keyboard 0 Movement Mouse Keybinds 0 Fullscreen 0 Font 18/CogNarrow Map View 64x51 Zoom Use 0% Tactical HUD 1 Map Filters NONE Filters BRIGHTNESS(115)|SATURATION(100)|LOW_CONTRAST(0,16,30) Steam 1 RUN: 42874537-d03a-4874-a320-0294b8bd57c9